[Event "XIX Sants Open 2017"]
[Site "Cotxeres de Sants"]
[Date "2017.08.24"]
[Round "7"]
[White "Zverev, Lev"]
[Black "Vargas Drechsler, Carlos"]
[Result "0-1"]
[ECO "C50"]
[WhiteElo "1372"]
[BlackElo "1913"]
[Annotator "NA RC"]
[PlyCount "136"]
[EventDate "2017.??.??"]
[EventType "swiss"]
[EventCountry "ESP"]
[SourceTitle "playchess.com"]
[Source "ChessBase"]
[SourceQuality "1"]
[TimeControl "40/5400+30:1800+30"]

1. e4 {[%emt 0:00:00]} e5 {[%emt 0:00:38]} 2. Nf3 {[%emt 0:00:00]} Nc6 {[%emt 0:00:10]} 3. Bc4 {[%emt 0:00:00]} Nf6 {[%emt 0:00:21]} 4. d3 {[%emt 0:00:00]} Bc5 {[%emt 0:00:50]} 5. c3 {[%emt 0:00:08]} d6 {[%emt 0:00:26]} 6. Bb3 {[%emt 0:00:21]} Bg4 {[%emt 0:03:23]} 7. Nbd2 {[%emt 0:00:40] C54: Giuoco Piano: 4 c3 Nf6, main lines with 5 d4 and 5 d3} Qd7 {[%emt 0:02:25]} 8. O-O {[%emt 0:00:47]} O-O-O {[%emt 0:01:34]} 9. Bc2 {[%emt 0:00:46]} d5 {[%emt 0:01:06]} 10. Ba4 $146 {[%emt 0:01:02]} ({Predecessor:} 10. b4 Bb6 11. Qe2 Rhe8 12. Re1 Nh5 13. exd5 Nf4 14. Qe4 Nd4 15. cxd4 {0-1 (58) Men,B-Sherzer,A (2460) Durango 1992}) 10... dxe4 {[%emt 0:10:10]} 11. dxe4 {[%emt 0:00:52]} Rhe8 {[%emt 0:03:31]} 12. Qe2 {[%emt 0:01:34]} Qd3 {[%emt 0:04:19]} 13. Qxd3 {[%emt 0:00:33]} Rxd3 {[%emt 0:00:03]} 14. Bc2 {[%emt 0:00:52]} Rdd8 {[%emt 0:00:53]} 15. b4 {[%emt 0:00:08]} Bd6 {[%emt 0:02:38]} 16. Bb2 {[%emt 0:00:32]} Ne7 {[%emt 0:06:06]} 17. h3 {[%emt 0:00:18]} Bh5 {[%emt 0:03:15]} 18. g4 {[%emt 0:00:12]} Bg6 {[%emt 0:00:11]} 19. a3 {[%emt 0:01:57]} Nc6 {[%emt 0:05:13]} 20. Rad1 {[%emt 0:00:24]} Bf8 {[%emt 0:02:32]} 21. Nh4 {[%emt 0:00:23]} a6 {[%emt 0:02:33]} 22. Nxg6 {[%emt 0:00:13]} hxg6 {[%emt 0:00:03]} 23. f3 Be7 {[%emt 0:07:07]} 24. Bb3 {[%emt 0:03:29]} Rh8 {[%emt 0:01:28]} 25. Bxf7 {[%emt 0:01:11]} Rxh3 {[%emt 0:04:10]} 26. Bxg6 {[%emt 0:01:54]} Rdh8 {[%emt 0:02:26]} 27. Kf2 {[%emt 0:00:33]} Rh2+ {[%emt 0:01:25]} 28. Kg1 {[%emt 0:01:43]} Rh1+ {[%emt 0:00:57]} 29. Kf2 {[%emt 0:00:28]} R1h2+ {[%emt 0:02:58]} 30. Ke3 {[%emt 0:01:55]} Nxg4+ {[%emt 0:05:32]} 31. fxg4 {[%emt 0:00:12]} Bg5+ {[%emt 0:02:10]} (31... R8h3+ $17 32. Rf3 Bg5+ 33. Kd3 Ne7 34. Rxh3 Rxh3+ 35. Ke2 Rh2+ 36. Kf1 Bxd2) 32. Kd3 {[%emt 0:00:11]} Bxd2 {[%emt 0:05:03]} 33. Kc2 {[%emt 0:00:23]} Bf4+ {[%emt 0:03:11]} 34. Kb1 {[%emt 0:00:10]} Re2 {[%emt 0:12:29]} 35. Bc1 {[%emt 0:00:44]} Rhh2 {[%emt 0:02:31]} 36. Bf7 {[%emt 0:01:27]} Bxc1 {[%emt 0:01:16]} 37. Rxc1 {[%emt 0:00:36]} Rb2+ {[%emt 0:01:34]} 38. Ka1 {[%emt 0:00:09]} Kd7 {[%emt 0:01:29]} 39. Bc4 {[%emt 0:01:25]} Nd8 {[%emt 0:00:59]} 40. Rh1 {[%emt 0:00:00]} b5 {[%emt 0:00:42]} 41. Rcd1+ {[%emt 0:07:58]} Ke7 {[%emt 0:02:54]} 42. Bg8 {[%emt 0:01:39]} Ne6 {[%emt 0:00:54]} 43. Rxh2 {[%emt 0:01:42]} Rxh2 {[%emt 0:00:12]} 44. Bxe6 {[%emt 0:02:26]} Kxe6 {[%emt 0:00:12]} 45. Rd8 {[%emt 0:03:53]} Rg2 {[%emt 0:12:03]} 46. Ra8 {[%emt 0:00:09]} Rxg4 {[%emt 0:00:19]} 47. Rxa6+ {[%emt 0:00:44]} Kd7 {[%emt 0:00:23]} 48. Ra8 {[%emt 0:00:49]} Rxe4 {[%emt 0:01:42]} 49. Kb2 {[%emt 0:02:26]} Re2+ {[%emt 0:01:17]} 50. Kc1 {[%emt 0:00:36]} g5 {[%emt 0:00:25]} 51. Kd1 {[%emt 0:01:08]} Rg2 {[%emt 0:02:47]} 52. Rg8 {[%emt 0:02:48]} Kd6 {[%emt 0:01:18]} 53. Ke1 {[%emt 0:00:23]} c6 {[%emt 0:00:43]} 54. Rd8+ {[%emt 0:00:14]} Ke6 {[%emt 0:00:47]} 55. Rd3 {[%emt 0:03:04]} e4 {[%emt 0:00:55]} 56. Re3 {[%emt 0:00:34]} Ke5 {[%emt 0:01:28]} 57. Kf1 {[%emt 0:00:12]} Ra2 {[%emt 0:00:31]} 58. Re2 {[%emt 0:00:27]} Rxe2 {[%emt 0:02:13]} 59. Kxe2 {[%emt 0:00:14]} g4 {[%emt 0:00:34]} 60. Kf2 {[%emt 0:00:23]} Kd5 {[%emt 0:00:18]} 61. a4 bxa4 {[%emt 0:00:18]} 62. Ke1 {[%emt 0:01:03]} a3 {[%emt 0:00:11]} 63. Kf2 {[%emt 0:00:23]} a2 {[%emt 0:00:08]} 64. c4+ {[%emt 0:00:55]} Kxc4 {[%emt 0:00:11]} 65. Ke2 {[%emt 0:00:26]} a1=Q {[%emt 0:00:15]} 66. Kd2 {[%emt 0:00:16]} Qc3+ {[%emt 0:00:24]} 67. Kd1 {[%emt 0:00:08]} Kd3 {[%emt 0:00:47]} 68. b5 {[%emt 0:00:53]} Qd2# {[%emt 0:00:09]} 0-1

[Event "XIX Sants Open 2017"]
[Site "Cotxeres de Sants"]
[Date "2017.08.25"]
[Round "8"]
[White "Petit Montes, Marc"]
[Black "Anjali R  Sagar"]
[Result "1-0"]
[ECO "C45"]
[WhiteElo "1948"]
[BlackElo "1813"]
[Annotator "NA RC"]
[PlyCount "31"]
[EventDate "2017.??.??"]
[EventType "swiss"]
[EventCountry "ESP"]
[SourceTitle "playchess.com"]
[Source "ChessBase"]
[SourceQuality "1"]
[TimeControl "40/5400+30:1800+30"]

1. e4 {[%emt 0:02:03]} e5 {[%emt 0:00:08]} 2. Nf3 {[%emt 0:00:03]} Nc6 {[%emt 0:00:08]} 3. d4 {[%emt 0:00:03]} exd4 {[%emt 0:00:11]} 4. Nxd4 {[%emt 0:00:03]} Bc5 {[%emt 0:00:06]} 5. Be3 {[%emt 0:00:35]} Qf6 {[%emt 0:00:11]} 6. Nb5 {[%emt 0:00:49]} Bxe3 {[%emt 0:00:52]} 7. fxe3 {[%emt 0:00:13]} Qh4+ {[%emt 0:05:34]} 8. g3 {[%emt 0:01:28]} Qd8 {[%emt 0:03:10]} 9. Qg4 {[%emt 0:02:05]} Nf6 {[%emt 0:02:57]} 10. Nxc7+ {[%emt 0:11:30]} Qxc7 {[%emt 0:06:55]} 11. Qxg7 {[%emt 0:00:35]} Ke7 {[%emt 0:00:37]} 12. Qxh8 {[%emt 0:01:03]} Qb6 {[%emt 0:00:49]} 13. Nc3 {[%emt 0:02:57]} Qxe3+ {[%emt 0:04:34]} 14. Be2 {[%emt 0:04:25]} Nd4 {[%emt 0:04:33]} 15. Qxf6+ {[%emt 0:01:18]} Kf8 {[%emt 0:02:22]} 16. Qh8+ {[%emt 0:00:08]} 1-0

[Event "XIX Sants Open 2017"]
[Site "Cotxeres de Sants"]
[Date "2017.08.25"]
[Round "8"]
[White "Vargas Drechsler, Carlos"]
[Black "Casset Bello, Elena"]
[Result "0-1"]
[ECO "E06"]
[WhiteElo "1913"]
[BlackElo "1936"]
[Annotator "NA RC"]
[PlyCount "124"]
[EventDate "2017.??.??"]
[EventType "swiss"]
[EventCountry "ESP"]
[SourceTitle "playchess.com"]
[Source "ChessBase"]
[SourceQuality "1"]
[TimeControl "40/5400+30:1800+30"]

1. d4 {[%emt 0:00:00]} d5 {[%emt 0:00:14]} 2. Nf3 {[%emt 0:00:24]} Nf6 {[%emt 0:00:12]} 3. c4 {[%emt 0:00:10]} e6 {[%emt 0:00:08]} 4. g3 {[%emt 0:00:10]} Be7 {[%emt 0:00:09]} 5. Bg2 {[%emt 0:00:45]} O-O {[%emt 0:00:15]} 6. O-O {[%emt 0:00:00]} dxc4 {[%emt 0:00:18]} 7. Ne5 {[%emt 0:02:08]} Nc6 {[%emt 0:03:52]} 8. Nxc6 {[%emt 0:01:37]} bxc6 {[%emt 0:00:07]} 9. Bxc6 {[%emt 0:00:41]} Rb8 {[%emt 0:00:36]} 10. Nc3 {[%emt 0:01:21]} Bb7 {[%emt 0:04:00]} 11. Bxb7 {[%emt 0:00:55]} Rxb7 {[%emt 0:00:07]} 12. e4 {[%emt 0:00:51] E05: Open Catalan: 5 Nf3 Be7} (12. e3 Bb4 13. Qf3 Rb8 14. Qe2 Bxc3 15. bxc3 Ne4 16. Qxc4 Qd5 17. Qxd5 exd5 18. c4 dxc4 19. Ba3 Rfe8 {½-½ (54) Cori Tello,J (2549)-Fernandez Garcia,J (2353) Linares 2014}) 12... c5 {[%emt 0:12:51]} 13. e5 {[%emt 0:07:17]} Nd5 $146 {[%emt 0:07:24]} ({Predecessor:} 13... Nd7 14. Qg4 cxd4 15. Bh6 Bf6 16. exf6 Qxf6 17. Bg5 Qg6 18. Nd1 e5 19. Re1 f5 {0-1 (28) Schalkwijk,P (1722)-Hynes,T (1817) Chessfriend.com 2003}) 14. Qg4 {[%emt 0:01:07]} Kh8 {[%emt 0:07:03]} 15. dxc5 {[%emt 0:02:43]} Nxc3 {[%emt 0:12:28]} 16. bxc3 {[%emt 0:03:28]} Qd5 {[%emt 0:04:43]} 17. Rd1 Qxc5 {[%emt 0:04:38]} 18. Be3 {[%emt 0:08:13]} Qxe5 {[%emt 0:13:12]} 19. Qxc4 {[%emt 0:01:53]} Rc7 {[%emt 0:02:17]} 20. Qg4 {[%emt 0:06:54]} f5 {[%emt 0:05:05]} 21. Bd4 {[%emt 0:02:12]} fxg4 {[%emt 0:00:45]} 22. Bxe5 {[%emt 0:02:55]} Rb7 {[%emt 0:09:12]} 23. Rab1 {[%emt 0:03:22]} Rxb1 {[%emt 0:00:12]} 24. Rxb1 {[%emt 0:00:04]} Bf6 {[%emt 0:02:38]} 25. Bxf6 {[%emt 0:01:50]} gxf6 {[%emt 0:00:01]} 26. Rb7 {[%emt 0:00:20]} a5 {[%emt 0:03:36]} 27. Ra7 {[%emt 0:00:39]} Rc8 {[%emt 0:00:14]} 28. Rxa5 {[%emt 0:00:55]} Kg7 {[%emt 0:00:22]} 29. Ra3 {[%emt 0:01:09]} Kg6 {[%emt 0:00:10]} 30. Kf1 {[%emt 0:00:26]} Rc5 {[%emt 0:02:15]} 31. Ke2 {[%emt 0:02:22]} Re5+ {[%emt 0:01:43]} 32. Kd3 {[%emt 0:00:26]} Rh5 {[%emt 0:00:03]} 33. c4 {[%emt 0:02:20]} Rxh2 {[%emt 0:00:09]} 34. Ke3 {[%emt 0:00:59]} h5 {[%emt 0:03:12]} 35. c5 {[%emt 0:01:27]} h4 {[%emt 0:00:27]} 36. c6 {[%emt 0:01:51]} hxg3 {[%emt 0:00:16]} 37. fxg3 {[%emt 0:01:53]} Rc2 {[%emt 0:00:02]} 38. Ra6 {[%emt 0:00:58]} f5 {[%emt 0:01:29]} 39. a4 {[%emt 0:01:32]} Kf6 {[%emt 0:00:25]} 40. a5 {[%emt 0:00:00]} Ke5 {[%emt 0:02:00]} 41. Rb6 {[%emt 0:05:13]} Kd6 {[%emt 0:02:16]} 42. a6 {[%emt 0:04:48]} (42. c7+ $5 Kd7 43. a6 Rxc7 44. Kd4 $11) 42... Kc7 {[%emt 0:00:58]} 43. a7 {[%emt 0:01:03]} Ra2 {[%emt 0:00:19]} 44. Rb7+ {[%emt 0:00:19]} Kxc6 {[%emt 0:00:29]} 45. Re7 {[%emt 0:00:30]} Kd6 {[%emt 0:00:26]} 46. Rb7 {[%emt 0:00:08]} Kc6 {[%emt 0:00:37]} 47. Re7 {[%emt 0:00:04]} Kd6 {[%emt 0:00:43]} 48. Rb7 e5 {[%emt 0:07:41]} 49. Rf7 $2 {[%emt 0:01:44]} ({White has to play} 49. Rb6+ $1 $15 Kc5 50. Rb7) 49... Ke6 {[%emt 0:00:16]} 50. Rb7 {[%emt 0:00:22]} (50. Rc7 {was called for.} Ra3+ 51. Kf2) 50... Ra3+ {[%emt 0:01:02]} 51. Kf2 {[%emt 0:03:03] [#]} f4 $1 {[%emt 0:01:42]} 52. Rg7 {[%emt 0:03:25]} Ra2+ {[%emt 0:00:57]} 53. Kf1 {[%emt 0:01:11]} Kf5 {[%emt 0:00:55]} 54. gxf4 {[%emt 0:09:25]} exf4 {[%emt 0:00:28]} 55. Rb7 {[%emt 0:02:42]} Kg5 {[%emt 0:08:27]} 56. Rh7 {[%emt 0:01:49]} f3 {[%emt 0:01:18]} 57. a8=Q {[%emt 0:02:06]} Rxa8 {[%emt 0:00:20]} 58. Kf2 {[%emt 0:00:01]} Ra2+ {[%emt 0:01:25]} 59. Ke3 {[%emt 0:00:08]} Re2+ {[%emt 0:01:02]} 60. Kd3 {[%emt 0:00:02]} Re6 {[%emt 0:00:46]} 61. Rh8 {[%emt 0:00:52]} f2 {[%emt 0:01:20]} 62. Rg8+ {[%emt 0:00:36]} Kh4 {[%emt 0:01:31]} (62... Rg6 $19 63. Rf8 Rf6 64. Rg8+ Kh6 65. Rh8+ Kg7) 0-1

[Event "XIX Sants Open 2017"]
[Site "Cotxeres de Sants"]
[Date "2017.08.25"]
[Round "8"]
[White "Sole Gonzalez, Edgar"]
[Black "Schilling, Florian"]
[Result "1/2-1/2"]
[ECO "A85"]
[WhiteElo "1866"]
[BlackElo "1892"]
[Annotator "NA RC"]
[PlyCount "112"]
[EventDate "2017.??.??"]
[EventType "swiss"]
[EventCountry "ESP"]
[SourceTitle "playchess.com"]
[Source "ChessBase"]
[SourceQuality "1"]
[TimeControl "40/5400+30:1800+30"]

{[%evp 12,110,43,32767,32767,32767,32767,32767,32767,126,32767,32767,32767,32767,32767,32767,107,32767,32767,32767,210,32767,32767,32767,32767,32767,32767,32767,32767,32767,32767,32767,147,32767,32767,128,32767,32767,148,108,104,106,32767,32767,32767,32767,32767,32767,32767,32767,32767,32767,32767,160,149,32767,147,137,147,145,160,154,152,151,135,133,160,37,37,47,57,50,39,50,49,39,40,40,39,26,70,-306,-279,-343,-414,-350,-97,-92,-94,-102,-127,-160,-106,-144,-58,0,0,0,0,0,0]} 1. d4 f5 2. c4 Nf6 3. Nc3 b6 4. Bf4 Bb7 5. e3 e6 6. Nf3 Ne4 {A40: Unusual replies to 1 d4} 7. Bd3 Be7 8. O-O (8. Qc2 Nxc3 9. Qxc3 O-O 10. h4 c5 11. O-O-O Bxf3 12. gxf3 cxd4 13. exd4 {0-1 (44) Andreasen,J (2219)-Miezis,N (2494) Koge 2015}) 8... O-O 9. Nd2 Bg5 $146 ({Predecessor:} 9... Nxc3 10. bxc3 d6 11. f3 e5 12. Bg3 Nd7 13. Qc2 g6 {½-½ (46) Cavatorta,F (1905)-Vezzani,S (2183) Imperia 2011}) 10. Bxe4 fxe4 11. Bxg5 Qxg5 12. Ncxe4 Qg6 13. Ng3 Na6 14. Qb1 Qg4 15. b4 Rae8 (15... d6 $16 16. a4 (16. b5 Nb8 $16) 16... c5) 16. b5 Nb8 17. Qd1 Qg6 18. Qh5 Qc2 19. Qe2 e5 20. d5 a5 21. Nde4 Qxe2 22. Nxe2 d6 23. N2g3 Bc8 24. f3 Nd7 25. Rf2 Nf6 26. Nxf6+ Rxf6 27. Raf1 h6 28. Ne4 Rf5 29. g4 Rf7 30. Kg2 Bd7 31. Rg1 Ref8 32. h3 Kh8 33. Nd2 Re7 34. Kf1 Be8 35. Ke2 Bg6 36. Rgf1 Kg8 37. h4 h5 38. gxh5 Bxh5 39. e4 (39. Ne4 $16) 39... Rf4 40. Rh1 Ref7 41. Rh3 Bg4 42. Rg3 Bh5 43. Rh2 Kf8 44. Ke3 R7f6 45. Rhh3 Be8 46. Rg4 $2 (46. h5 $14 {stays ahead.}) 46... Bd7 47. Rhg3 Bxg4 48. fxg4 Rg6 $2 (48... Rf2 $19 49. g5 R6f4) 49. g5 Rxh4 50. Rf3+ Ke7 51. Rf5 (51. Rg3 $142) 51... Rg4 52. Nf3 {[#]} Rg2 (52... a4 $1 $19 53. a3 Ke8) 53. a4 Ke8 54. Kd3 Rg4 55. Ke3 Rg2 $11 56. Kd3 Rg4 1/2-1/2

[Event "XIX Sants Open 2017"]
[Site "Cotxeres de Sants"]
[Date "2017.08.25"]
[Round "8"]
[White "Forte Esparza, Miguel"]
[Black "Abdelkader Garstka, Adam"]
[Result "1-0"]
[ECO "C02"]
[WhiteElo "1602"]
[BlackElo "1612"]
[Annotator "NA RC"]
[PlyCount "47"]
[EventDate "2017.??.??"]
[EventType "swiss"]
[EventCountry "ESP"]
[SourceTitle "playchess.com"]
[Source "ChessBase"]
[SourceQuality "1"]
[TimeControl "40/5400+30:1800+30"]

1. e4 {[%emt 0:00:00]} c5 {[%emt 0:00:52]} 2. c3 {[%emt 0:00:00]} e6 {[%emt 0:00:53]} 3. d4 {[%emt 0:00:05]} d5 {[%emt 0:00:36]} 4. e5 {[%emt 0:00:09]} Nc6 {[%emt 0:00:45]} 5. Nf3 {[%emt 0:00:06]} cxd4 {[%emt 0:01:12]} 6. cxd4 {[%emt 0:00:06]} Nge7 {[%emt 0:01:26]} 7. a3 {[%emt 0:01:33]} Nf5 {[%emt 0:03:47]} 8. b4 {[%emt 0:00:38]} Be7 {[%emt 0:03:44]} 9. Bb2 {[%emt 0:00:30]} Bd7 {[%emt 0:02:31]} 10. Nc3 {[%emt 0:05:09]} a6 {[%emt 0:04:06]} 11. Rc1 {[%emt 0:06:15]} O-O {[%emt 0:04:01]} 12. Be2 {[%emt 0:00:22]} f6 {[%emt 0:05:51]} 13. O-O {[%emt 0:08:57]} fxe5 {[%emt 0:07:15]} 14. dxe5 {[%emt 0:02:23]} Bg5 {[%emt 0:11:16]} 15. Nxg5 {[%emt 0:01:00]} Qxg5 {[%emt 0:00:26]} 16. Nxd5 {[%emt 0:13:47]} exd5 {[%emt 0:33:24]} 17. Qxd5+ {[%emt 0:00:10]} Rf7 {[%emt 0:00:13]} 18. e6 {[%emt 0:00:08]} Bxe6 {[%emt 0:00:57]} 19. Qxe6 {[%emt 0:00:07]} Ncd4 {[%emt 0:01:11]} 20. Rc8+ {[%emt 0:01:11]} Qd8 {[%emt 0:03:11]} 21. Rxd8+ {[%emt 0:00:13]} Rxd8 {[%emt 0:00:04]} 22. Bxd4 {[%emt 0:00:37]} Nxd4 {[%emt 0:03:52]} 23. Qg4 {[%emt 0:00:36]} Rf4 {[%emt 0:01:10]} 24. Bc4+ {Ra8} 1-0

[Event "XIX Sants Open 2017"]
[Site "Cotxeres de Sants"]
[Date "2017.08.25"]
[Round "8"]
[White "Lopez Arjona, Emilio"]
[Black "Ferre Navarro, Joan"]
[Result "0-1"]
[ECO "B06"]
[WhiteElo "1547"]
[BlackElo "1594"]
[Annotator "NA RC"]
[PlyCount "89"]
[EventDate "2017.??.??"]
[EventType "swiss"]
[EventCountry "ESP"]
[SourceTitle "playchess.com"]
[Source "ChessBase"]
[SourceQuality "1"]
[TimeControl "40/5400+30:1800+30"]

1. e4 {[%emt 0:00:00]} g6 {[%emt 0:00:24]} 2. d4 {[%emt 0:00:11]} Bg7 {[%emt 0:00:07]} 3. Nc3 {[%emt 0:00:58]} a6 {[%emt 0:00:12]} 4. Be3 {[%emt 0:01:33]} d6 {[%emt 0:00:22]} 5. Bc4 {[%emt 0:02:52]} Nf6 {[%emt 0:02:01]} 6. f3 {[%emt 0:00:29]} Nbd7 {[%emt 0:00:31]} 7. a3 {[%emt 0:03:33]} c5 {[%emt 0:07:46]} 8. a4 {[%emt 0:11:54]} b6 {[%emt 0:05:48]} 9. Qd2 {[%emt 0:01:07]} cxd4 {[%emt 0:02:51]} 10. Bxd4 {[%emt 0:01:44]} Bb7 {[%emt 0:00:51]} 11. Nge2 {[%emt 0:01:48]} Rc8 {[%emt 0:04:23]} 12. Bb3 {[%emt 0:01:32]} Nc5 {[%emt 0:03:59]} 13. Bd5 {[%emt 0:05:09]} O-O {[%emt 0:05:11]} 14. Bxb7 {[%emt 0:04:07]} Nxb7 {[%emt 0:00:19]} 15. O-O {[%emt 0:07:46]} Nc5 {[%emt 0:00:30]} 16. Be3 {[%emt 0:01:14]} Nfd7 {[%emt 0:03:55]} 17. Bd4 {[%emt 0:04:01]} Ne5 {[%emt 0:01:08]} 18. b3 {[%emt 0:03:14]} e6 {[%emt 0:04:37]} 19. Rac1 {[%emt 0:02:49]} Qc7 {[%emt 0:01:30]} 20. Kh1 {[%emt 0:09:26]} Ncd7 {[%emt 0:04:22]} 21. Be3 {[%emt 0:03:11]} Nf6 {[%emt 0:06:59]} 22. Bh6 {[%emt 0:02:50]} Rfd8 {[%emt 0:02:03]} 23. Bxg7 {[%emt 0:02:15]} Kxg7 {[%emt 0:00:15]} 24. f4 {[%emt 0:07:48]} Ned7 {[%emt 0:02:25]} 25. Rf3 {[%emt 0:02:08]} Qc5 {[%emt 0:01:56]} 26. Nb1 {[%emt 0:02:43]} Nxe4 {[%emt 0:03:43]} 27. Qe1 {[%emt 0:01:18]} Ndf6 {[%emt 0:01:24]} 28. Ng3 {[%emt 0:00:39]} d5 {[%emt 0:01:32]} 29. Nxe4 {[%emt 0:03:29]} Nxe4 {[%emt 0:00:27]} 30. h3 {[%emt 0:01:49]} Rc7 {[%emt 0:01:43]} 31. Kh2 {[%emt 0:00:50]} Rdc8 {[%emt 0:02:29]} 32. c4 {[%emt 0:04:33]} Qd6 {[%emt 0:01:12]} 33. Rd1 {[%emt 0:01:25]} Nf6 {[%emt 0:03:52]} 34. Qc3 {[%emt 0:02:39]} Rd7 {[%emt 0:03:02]} 35. Rd4 {[%emt 0:01:27]} Kg8 {[%emt 0:00:35]} 36. Nd2 {[%emt 0:00:35]} Qb8 {[%emt 0:00:51]} 37. g3 {[%emt 0:00:46]} b5 {[%emt 0:00:54]} 38. axb5 {[%emt 0:00:36]} axb5 {[%emt 0:00:17]} 39. h4 {[%emt 0:00:47]} Ng4+ {[%emt 0:01:15]} 40. Kh3 {[%emt 0:00:00]} h5 {[%emt 0:00:13]} 41. Kg2 {[%emt 0:02:58]} Qb6 {[%emt 0:00:50]} 42. Qc2 {[%emt 0:02:37]} Qxd4 {[%emt 0:01:34]} 43. Nf1 {[%emt 0:01:22]} bxc4 {[%emt 0:00:28]} 44. Rd3 {[%emt 0:01:51]} Qxd3 {[%emt 0:00:42]} 45. Qc3 0-1

[Event "XIX Sants Open 2017"]
[Site "Cotxeres de Sants"]
[Date "2017.08.25"]
[Round "8"]
[White "Lopez Oliva, Victor"]
[Black "Segura Ruiz, Carlos"]
[Result "0-1"]
[ECO "B10"]
[WhiteElo "1530"]
[BlackElo "1414"]
[Annotator "NA RC"]
[PlyCount "87"]
[EventDate "2017.??.??"]
[EventType "swiss"]
[EventCountry "ESP"]
[SourceTitle "playchess.com"]
[Source "ChessBase"]
[SourceQuality "1"]
[TimeControl "40/5400+30:1800+30"]

1. e4 c6 2. Nc3 d5 3. Nf3 dxe4 4. Nxe4 Nf6 5. Nxf6+ exf6 6. Bc4 Be7 7. O-O O-O 8. d4 Bg4 9. c3 b5 10. Bb3 Na6 11. h3 Bh5 12. a3 Nc7 13. Bf4 Nd5 14. Bg3 Bd6 15. Bxd5 cxd5 16. Bxd6 Qxd6 17. Qd3 Qf4 18. a4 Bxf3 19. Qxf3 Qxf3 20. gxf3 a5 21. axb5 Rfb8 22. Ra2 Rxb5 23. Rfa1 Rd8 24. Rxa5 Rxb2 25. Ra8 Rbb8 26. Rxb8 Rxb8 27. Ra5 Rd8 28. Rc5 Kf8 29. c4 dxc4 30. Rxc4 Ke7 31. Kf1 Kd6 32. Ke2 Rd7 33. Kd3 Ra7 34. Ke4 g6 35. d5 Rc7 36. Rxc7 Kxc7 37. h4 h5 38. f4 Kd6 39. f3 Kc5 40. d6 Kxd6 41. Kd4 Kc6 42. Ke4 Kc5 43. Kd3 Kd5 44. Ke3 0-1

[Event "XIX Sants Open 2017"]
[Site "Cotxeres de Sants"]
[Date "2017.08.26"]
[Round "9"]
[White "Garcia Ruiz, Adrian"]
[Black "Lopez Gallego, Miguel Angel"]
[Result "1-0"]
[ECO "B90"]
[WhiteElo "1940"]
[BlackElo "1819"]
[Annotator "NA"]
[PlyCount "91"]
[EventDate "2017.??.??"]
[EventType "swiss"]
[EventCountry "ESP"]
[SourceTitle "playchess.com"]
[Source "ChessBase"]
[SourceQuality "1"]
[TimeControl "40/5400+30:1800+30"]

1. e4 c5 2. Nf3 d6 3. d4 cxd4 4. Nxd4 Nf6 5. Nc3 a6 6. Be3 e6 7. Be2 Be7 8. O-O Qc7 9. a4 b6 10. f4 Nbd7 11. Qe1 Bb7 12. Bf3 Nc5 13. e5 dxe5 14. fxe5 Nd5 15. Nxd5 Bxd5 16. Bxd5 exd5 17. Qg3 g6 18. Qf3 O-O-O 19. Qe2 Kb7 20. Rxf7 Qxe5 21. b4 Nd7 22. Qd2 Bf6 23. Rf1 Rhe8 24. Rxh7 Rh8 25. Nf3 Qe4 26. Rxh8 Rxh8 27. Bd4 Rc8 28. c3 Rc7 29. Re1 Qf5 30. Bxf6 Nxf6 31. Qd4 Ne4 32. a5 Rc6 33. Ne5 Rd6 34. Rf1 Qc8 35. Rf7+ Ka8 36. axb6 Qxc3 37. Rf8+ Kb7 38. Rf7+ Ka8 39. Rf8+ Kb7 40. Rf7+ Ka8 41. b7+ Kb8 42. Rf8+ Kxb7 43. Rf7+ Kc8 44. Qa7 Qe1+ 45. Rf1 Qxf1+ 46. Kxf1 1-0

[Event "XIX Sants Open 2017"]
[Site "Cotxeres de Sants"]
[Date "2017.08.26"]
[Round "9"]
[White "Casset Bello, Elena"]
[Black "Sole Gonzalez, Edgar"]
[Result "1/2-1/2"]
[ECO "D35"]
[WhiteElo "1936"]
[BlackElo "1866"]
[Annotator "NA"]
[PlyCount "49"]
[EventDate "2017.??.??"]
[EventType "swiss"]
[EventCountry "ESP"]
[SourceTitle "playchess.com"]
[Source "ChessBase"]
[SourceQuality "1"]
[TimeControl "40/5400+30:1800+30"]

1. d4 {[%emt 0:00:00]} d5 {[%emt 0:01:33]} 2. c4 {[%emt 0:00:00]} e6 {[%emt 0:00:12]} 3. cxd5 {[%emt 0:00:00]} exd5 {[%emt 0:00:11]} 4. Nc3 {[%emt 0:00:00]} Nf6 {[%emt 0:00:10]} 5. Bg5 {[%emt 0:00:14]} Nbd7 {[%emt 0:00:17]} 6. e3 {[%emt 0:00:23]} c6 {[%emt 0:00:08]} 7. Bd3 {[%emt 0:00:34]} Be7 {[%emt 0:00:08]} 8. Qc2 {[%emt 0:00:25]} O-O {[%emt 0:00:19]} 9. Nf3 {[%emt 0:00:17]} h6 {[%emt 0:00:16]} 10. Bh4 {[%emt 0:01:04]} Re8 {[%emt 0:00:10]} 11. O-O {[%emt 0:00:32]} Ne4 {[%emt 0:00:39]} 12. Bxe7 {[%emt 0:00:20]} Qxe7 {[%emt 0:00:11]} 13. Bxe4 {[%emt 0:02:44]} dxe4 {[%emt 0:00:14]} 14. Nd2 {[%emt 0:00:03]} Nf6 {[%emt 0:00:09]} 15. Nc4 {[%emt 0:22:55]} Bf5 {[%emt 0:10:43]} 16. Ne2 {[%emt 0:10:21]} Nd5 {[%emt 0:04:31]} 17. Ng3 {[%emt 0:05:31]} Bg6 {[%emt 0:02:46]} 18. a3 {[%emt 0:03:13]} h5 {[%emt 0:08:55]} 19. Ne5 {[%emt 0:02:06]} Qe6 {[%emt 0:00:32]} 20. Nxg6 {[%emt 0:08:32]} Qxg6 {[%emt 0:00:06]} 21. Ne2 {[%emt 0:04:01]} h4 {[%emt 0:05:39]} 22. h3 {[%emt 0:02:13]} Qf5 {[%emt 0:04:33]} 23. Nc3 {[%emt 0:01:36]} Re6 {[%emt 0:02:30]} 24. Nxd5 {[%emt 0:01:41]} cxd5 {[%emt 0:03:35]} 25. Qc7 {[%emt 0:02:48]} 1/2-1/2

[Event "XIX Sants Open 2017"]
[Site "Cotxeres de Sants"]
[Date "2017.08.26"]
[Round "9"]
[White "Morera Campos, Yanori Maria"]
[Black "Petit Montes, Marc"]
[Result "1/2-1/2"]
[ECO "B19"]
[WhiteElo "1887"]
[BlackElo "1948"]
[Annotator "NA"]
[PlyCount "50"]
[EventDate "2017.??.??"]
[EventType "swiss"]
[EventCountry "ESP"]
[SourceTitle "playchess.com"]
[Source "ChessBase"]
[SourceQuality "1"]
[TimeControl "40/5400+30:1800+30"]

1. e4 {[%emt 0:00:00]} c6 {[%emt 0:00:03]} 2. d4 {[%emt 0:00:00]} d5 {[%emt 0:00:08]} 3. Nd2 {[%emt 0:00:03]} dxe4 {[%emt 0:00:16]} 4. Nxe4 {[%emt 0:00:09]} Bf5 {[%emt 0:00:07]} 5. Ng3 {[%emt 0:00:18]} Bg6 {[%emt 0:00:06]} 6. h4 {[%emt 0:00:20]} h6 {[%emt 0:01:02]} 7. Nf3 {[%emt 0:00:18]} Nd7 {[%emt 0:00:29]} 8. h5 {[%emt 0:00:23]} Bh7 {[%emt 0:00:11]} 9. Bd3 {[%emt 0:00:17]} Bxd3 {[%emt 0:00:24]} 10. Qxd3 {[%emt 0:00:04]} Ngf6 {[%emt 0:03:01]} 11. Bd2 {[%emt 0:01:13]} Qc7 {[%emt 0:01:12]} 12. O-O-O {[%emt 0:02:13]} O-O-O {[%emt 0:00:35]} 13. Kb1 {[%emt 0:04:02]} e6 {[%emt 0:00:11]} 14. c4 Bd6 {[%emt 0:01:05]} 15. Ne4 {[%emt 0:08:27]} Nxe4 {[%emt 0:00:11]} 16. Qxe4 {[%emt 0:00:04]} Nf6 {[%emt 0:00:03]} 17. Qc2 {[%emt 0:01:03]} c5 {[%emt 0:02:49]} 18. Qa4 {[%emt 0:12:57]} Kb8 {[%emt 0:09:24]} 19. g3 {[%emt 0:03:07]} Ka8 {[%emt 0:37:31]} 20. Rh4 {[%emt 0:05:34]} Rc8 {[%emt 0:04:20]} 21. Be3 {[%emt 0:01:35]} Rhd8 {[%emt 0:10:11]} 22. Rd3 {[%emt 0:15:04]} Qd7 {[%emt 0:06:26]} 23. Qd1 {[%emt 0:04:00]} Qc7 {[%emt 0:04:20]} 24. Qa4 {[%emt 0:11:51]} Qd7 {[%emt 0:01:08]} 25. Qd1 {[%emt 0:03:00]} Qc7 1/2-1/2